fUST/lending_fUST_20260117
["ID","MTS","AMOUNT","RATE_DAILY","PERIOD"]
[402332322,1768659092479,-372.37,0.00017808,3]
[402332324,1768659092488,-500.0,0.00017808,3]
[402332326,1768659092497,-500.0,0.00017808,3]
[402332328,1768659092506,-500.0,0.00017808,3]
[402332330,1768659092515,-500.0,0.00017808,3]
[402332332,1768659092525,-761.09,0.00017808,3]
[402332334,1768659092534,-1622.42,0.00017808,3]
[402332336,1768659092543,-500.0,0.00017808,3]
[402332338,1768659092554,-500.0,0.00017808,3]
[402332340,1768659092562,-1425.42,0.00017808,3]
[402332342,1768659092571,-1097.29,0.00017808,3]
[402332344,1768659092581,-1547.34,0.00017808,3]
[402332346,1768659092590,-500.0,0.00017808,3]
[402332348,1768659092599,-500.0,0.00017808,3]
[402332350,1768659092608,-500.0,0.00017808,3]
[402332351,1768659092618,-500.0,0.00017808,3]
[402332353,1768659092627,-2020.66,0.00017808,3]
[402332355,1768659092636,-1837.73,0.00017808,3]
[402332357,1768659092646,-500.0,0.00017808,3]
[402332359,1768659092655,-14920.45,0.00017808,3]
[402332361,1768659092664,-520.01,0.00017808,3]
[402332363,1768659092674,-705.67,0.00017808,3]
[402332365,1768659092683,-500.0,0.00017808,3]
[402332367,1768659092692,-277.37336634,0.00017808,3]
[402332369,1768659092702,-1401.0,0.00017808,3]
[402332371,1768659092712,-1215.91,0.00017808,3]
[402332373,1768659092721,-844.98,0.00017808,3]
[402332375,1768659092731,-1652.42,0.00017808,3]
[402332377,1768659092740,-500.0,0.00017808,3]
[402332379,1768659092749,-500.0,0.00017808,3]
[402332381,1768659092758,-1253.25,0.00017808,3]
[402332383,1768659092770,-569.38190569,0.00017808,3]
[402332385,1768659092779,-500.0,0.00017808,3]
[402332387,1768659092788,-3641.66,0.00017808,3]
[402332388,1768659092798,-1451.63,0.00017808,3]
[402332390,1768659092807,-500.0,0.00017808,3]
[402332392,1768659092816,-1509.95,0.00017808,3]
[402332394,1768659092826,-500.0,0.00017808,3]
[402332395,1768659092835,-760.68,0.00017808,3]
[402332396,1768659092844,-957.46,0.00017808,3]
[402332397,1768659092853,-1880.31,0.00017808,3]
[402332398,1768659092867,-757.84,0.00017808,3]
[402332399,1768659092876,-500.0,0.00017808,3]
[402332400,1768659092885,-707.11,0.00017808,3]
[402332401,1768659092894,-500.0,0.00017808,3]
[402332402,1768659092906,-500.0,0.00017808,3]
[402332403,1768659092915,-500.0,0.00017808,3]
[402332404,1768659092924,-700.32,0.00017808,3]
[402332405,1768659092935,-500.0,0.00017808,3]
[402332406,1768659092944,-500.0,0.00017808,3]
[402332407,1768659092953,-500.0,0.00017808,3]
[402332408,1768659092962,-698.65,0.00017808,3]
[402332409,1768659092971,-2050.27,0.00017808,3]
[402332410,1768659092980,-500.0,0.00017808,3]
[402332411,1768659092989,-500.0,0.00017808,3]
[402332412,1768659092998,-542.85,0.00017808,3]
[402332413,1768659093008,-1102.58,0.00017808,3]
[402332414,1768659093016,-500.0,0.00017808,3]
[402332416,1768659093026,-1467.06,0.00017808,3]
[402332417,1768659093035,-500.0,0.00017808,3]
[402332419,1768659093045,-205.0424937,0.00017808,3]
[402332421,1768659093055,-1412.19,0.00017808,3]
[402332424,1768659093065,-699.55,0.00017808,3]
[402332425,1768659093075,-500.0,0.00017808,3]
[402332427,1768659093084,-500.0,0.00017808,3]
[402332429,1768659093094,-500.0,0.00017808,3]
[402332431,1768659093104,-500.0,0.00017808,3]
[402332433,1768659093113,-500.0,0.00017808,3]
[402332435,1768659093122,-500.0,0.00017808,3]
[402332437,1768659093132,-500.0,0.00017808,3]
[402332439,1768659093141,-1428.69,0.00017808,3]
[402332441,1768659093151,-722.95,0.00017808,3]
[402332443,1768659093161,-500.0,0.00017808,3]
[402332445,1768659093171,-1662.79,0.00017808,3]
[402332447,1768659093181,-500.0,0.00017808,3]
[402332449,1768659093191,-500.0,0.00017808,3]
[402332451,1768659093201,-1044.14,0.00017808,3]
[402332453,1768659093211,-607.6,0.00017808,3]
[402332455,1768659093221,-614.82090661,0.00017808,3]
[402332457,1768659093231,-1456.0,0.00017808,3]
[402332459,1768659093241,-913.11,0.00017808,3]
[402332461,1768659093251,-568.79,0.00017808,3]
[402332464,1768659093261,-561.39,0.00017808,3]
[402332465,1768659093270,-596.89198935,0.00017808,3]
[402332467,1768659093280,-531.99,0.00017808,3]
[402332469,1768659093290,-500.0,0.00017808,3]
[402332471,1768659093300,-500.0,0.00017808,3]
[402332473,1768659093309,-500.0,0.00017808,3]
[402332475,1768659093319,-500.0,0.00017808,3]
[402332477,1768659093329,-1211.48,0.00017808,3]
[402332479,1768659093339,-1177.76,0.00017808,3]
[402332481,1768659093348,-500.0,0.00017808,3]
[402332483,1768659093358,-939.73,0.00017808,3]
[402332485,1768659093367,-670.95,0.00017808,3]
[402332487,1768659093376,-1326.69,0.00017808,3]
[402332489,1768659093386,-1081.34,0.00017808,3]
[402332491,1768659093395,-500.0,0.00017808,3]
[402332493,1768659093406,-512.41,0.00017808,3]
[402332495,1768659093415,-1622.28,0.00017808,3]
[402332497,1768659093425,-567.25,0.00017808,3]
[402332499,1768659093435,-1106.71,0.00017808,3]
[402332501,1768659093445,-500.0,0.00017808,3]
[402332504,1768659093456,-500.0,0.00017808,3]
[402332507,1768659093476,-597.09,0.00017808,3]
[402332509,1768659093487,-500.0,0.00017808,3]
[402332511,1768659093497,-1431.76,0.00017808,3]
[402332513,1768659093508,-500.0,0.00017808,3]
[402332515,1768659093521,-500.0,0.00017808,3]
[402332517,1768659093531,-500.0,0.00017808,3]
[402332519,1768659093541,-501.51,0.00017808,3]
[402332521,1768659093551,-610.02,0.00017808,3]
[402332522,1768659093560,-500.0,0.00017808,3]
[402332523,1768659093571,-1010.29,0.00017808,3]
[402332524,1768659093581,-500.0,0.00017808,3]
[402332525,1768659093590,-260.63382945,0.00017808,3]
[402332526,1768659093600,-609.3,0.00017808,3]
[402332527,1768659093610,-2815.19,0.00017808,3]
[402332528,1768659093621,-647.23,0.00017808,3]
[402332529,1768659093631,-500.0,0.00017808,3]
[402332530,1768659093642,-500.0,0.00017808,3]
[402332531,1768659093653,-2008.11,0.00017808,3]
[402332532,1768659093665,-992.91,0.00017808,3]
[402332533,1768659093675,-500.0,0.00017808,3]
[402332534,1768659093685,-500.0,0.00017808,3]
[402332535,1768659093695,-557.01,0.00017808,3]
[402332536,1768659093706,-759.0,0.00017808,3]
[402332537,1768659093716,-793.38,0.00017808,3]
[402332538,1768659093726,-561.04,0.00017808,3]
[402332539,1768659093736,-500.0,0.00017808,3]
[402332540,1768659093746,-500.0,0.00017808,3]
[402332541,1768659093756,-620.44,0.00017808,3]
[402332542,1768659093767,-599.93,0.00017808,3]
[402332543,1768659093777,-500.0,0.00017808,3]
[402332544,1768659093787,-500.0,0.00017808,3]
[402332545,1768659093797,-722.98,0.00017808,3]
[402332546,1768659093807,-500.0,0.00017808,3]
[402332547,1768659093817,-893.02,0.00017808,3]
[402332548,1768659093827,-945.42,0.00017808,3]
[402332549,1768659093838,-1045.03,0.00017808,3]
[402332550,1768659093848,-1046.6,0.00017808,3]
[402332551,1768659093859,-645.09,0.00017808,3]
[402332552,1768659093870,-500.0,0.00017808,3]
[402332553,1768659093880,-500.0,0.00017808,3]
[402332554,1768659093890,-598.18,0.00017808,3]
[402332555,1768659093900,-500.0,0.00017808,3]
[402332556,1768659093911,-8441.37,0.00017808,3]
[402332557,1768659093922,-500.0,0.00017808,3]
[402332558,1768659093933,-500.0,0.00017808,3]
[402332559,1768659093943,-980.47,0.00017808,3]
[402332560,1768659093954,-1662.71,0.00017808,3]
[402332561,1768659093964,-500.0,0.00017808,3]
[402332562,1768659093975,-500.0,0.00017808,3]
[402332563,1768659093991,-500.0,0.00017808,3]
[402332564,1768659094002,-583.28,0.00017808,3]
[402332565,1768659094013,-500.0,0.00017808,3]
[402332566,1768659094025,-500.0,0.00017808,3]
[402332567,1768659094036,-916.68,0.00017808,3]
[402332568,1768659094047,-500.0,0.00017808,3]
[402332569,1768659094058,-500.0,0.00017808,3]
[402332570,1768659094069,-1239.92,0.00017808,3]
[402332572,1768659094080,-500.0,0.00017808,3]
[402332574,1768659094091,-959.49,0.00017808,3]
[402332575,1768659094102,-1628.03,0.00017808,3]
[402332577,1768659094113,-1330.27,0.00017808,3]
[402332579,1768659094124,-645.96,0.00017808,3]
[402332580,1768659094136,-500.0,0.00017808,3]
[402332581,1768659094147,-500.0,0.00017808,3]
[402332583,1768659094159,-500.0,0.00017808,3]
[402332585,1768659094170,-500.0,0.00017808,3]
[402332586,1768659094181,-500.0,0.00017808,3]
[402332587,1768659094193,-1605.91,0.00017808,3]
[402332588,1768659094204,-2039.45,0.00017808,3]
[402332589,1768659094216,-500.0,0.00017808,3]
[402332590,1768659094227,-1033.72,0.00017808,3]
[402332591,1768659094237,-782.18,0.00017808,3]
[402332592,1768659094249,-500.0,0.00017808,3]
[402332593,1768659094260,-784.27,0.00017808,3]
[402332594,1768659094270,-500.0,0.00017808,3]
[402332595,1768659094281,-500.0,0.00017808,3]
[402332596,1768659094292,-1140.99,0.00017808,3]
[402332597,1768659094303,-500.0,0.00017808,3]
[402332598,1768659094314,-791.1,0.00017808,3]
[402332599,1768659094324,-500.0,0.00017808,3]
[402332600,1768659094334,-830.09,0.00017808,3]
[402332601,1768659094344,-500.0,0.00017808,3]
[402332602,1768659094355,-500.0,0.00017808,3]
[402332603,1768659094365,-3211.22,0.00017808,3]
[402332604,1768659094376,-795.5,0.00017808,3]
[402332605,1768659094387,-500.0,0.00017808,3]
[402332606,1768659094397,-500.0,0.00017808,3]
[402332607,1768659094407,-1112.08,0.00017808,3]
[402332608,1768659094418,-632.75,0.00017808,3]
[402332609,1768659094429,-500.0,0.00017808,3]
[402332610,1768659094439,-500.0,0.00017808,3]
[402332611,1768659094450,-500.0,0.00017808,3]
[402332612,1768659094461,-601.82,0.00017808,3]
[402332613,1768659094471,-598.94,0.00017808,3]
[402332614,1768659094481,-1550.67,0.00017808,3]
[402332615,1768659094495,-2433.28,0.00017808,3]
[402332616,1768659094507,-508.15,0.00017808,3]
[402332617,1768659094518,-500.0,0.00017808,3]
[402332618,1768659094529,-555.88,0.00017808,3]
[402332619,1768659094539,-500.0,0.00017808,3]
[402332620,1768659094550,-1739.47,0.00017808,3]
[402332621,1768659094561,-500.0,0.00017808,3]
[402332622,1768659094571,-1598.4,0.00017808,3]
[402332624,1768659094582,-1063.53,0.00017808,3]
[402332625,1768659094594,-500.0,0.00017808,3]
[402332626,1768659094604,-1469.78,0.00017808,3]
[402332627,1768659094615,-500.0,0.00017808,3]
[402332628,1768659094625,-500.0,0.00017808,3]
[402332629,1768659094638,-934.75,0.00017808,3]
[402332630,1768659094649,-915.24,0.00017808,3]
[402332631,1768659094660,-733.19,0.00017808,3]
[402332632,1768659094670,-816.16,0.00017808,3]
[402332633,1768659094681,-1878.43,0.00017808,3]
[402332634,1768659094691,-500.0,0.00017808,3]
[402332635,1768659094702,-1089.71,0.00017808,3]
[402332636,1768659094712,-500.0,0.00017808,3]
[402332637,1768659094723,-500.0,0.00017808,3]
[402332638,1768659094733,-750.97,0.00017808,3]
[402332639,1768659094743,-500.0,0.00017808,3]
[402332640,1768659094754,-500.0,0.00017808,3]
[402332641,1768659094764,-1374.51,0.00017808,3]
[402332642,1768659094775,-1031.25,0.00017808,3]
[402332643,1768659094786,-1506.77,0.00017808,3]
[402332644,1768659094798,-500.0,0.00017808,3]
[402332645,1768659094810,-654.05,0.00017808,3]
[402332646,1768659094821,-500.0,0.00017808,3]
[402332647,1768659094833,-1254.14,0.00017808,3]
[402332648,1768659094843,-885.27,0.00017808,3]
[402332649,1768659094855,-1550.94,0.00017808,3]
[402332650,1768659094870,-500.0,0.00017808,3]
[402332651,1768659094880,-500.0,0.00017808,3]
[402332652,1768659094891,-1929.23,0.00017808,3]
[402332653,1768659094903,-500.0,0.00017808,3]
[402332654,1768659094914,-871.62,0.00017808,3]
[402332655,1768659094926,-500.0,0.00017808,3]
[402332656,1768659094939,-500.0,0.00017808,3]
[402332658,1768659094950,-500.0,0.00017808,3]
[402332660,1768659094961,-1606.32,0.00017808,3]
[402332662,1768659094971,-548.96,0.00017808,3]
[402332663,1768659094982,-500.0,0.00017808,3]
[402332664,1768659094993,-500.0,0.00017808,3]
[402332665,1768659095005,-500.0,0.00017808,3]
[402332666,1768659095015,-747.4,0.00017808,3]
[402332667,1768659095026,-977.24,0.00017808,3]
[402332668,1768659095036,-500.0,0.00017808,3]
[402332669,1768659095047,-500.0,0.00017808,3]
[402332670,1768659095058,-500.0,0.00017808,2]
[402332671,1768659095068,-1149.89,0.00017808,3]
[402332672,1768659095079,-500.0,0.00017808,3]
[402332673,1768659095089,-500.0,0.00017808,3]
[402332674,1768659095099,-500.0,0.00017808,3]
[402332675,1768659095110,-500.0,0.00017808,3]
[402332676,1768659095120,-500.0,0.00017808,3]
[402332677,1768659095131,-562.34469649,0.00017808,3]
[402332678,1768659095141,-500.0,0.00017808,2]
[402332679,1768659095152,-500.0,0.00017808,3]
[402332680,1768659095162,-500.0,0.00017808,3]
[402332681,1768659095172,-500.0,0.00017808,3]
[402332682,1768659095182,-574.13,0.00017808,3]
[402332683,1768659095192,-602.36,0.00017808,3]
[402332684,1768659095203,-502.51,0.00017808,3]
[402332685,1768659095213,-377.8688684,0.00017808,2]
[402332686,1768659095223,-377.8688684,0.00017808,2]
[402332687,1768659095234,-377.8688684,0.00017808,2]
[402332688,1768659095243,-377.8688684,0.00017808,2]
[402332689,1768659095254,-307.5992852,0.00017808,2]
[402332690,1768659095264,-176.3780108,0.00017808,2]
[402332691,1768659095274,-500.0,0.00017808,2]
[402332692,1768659095284,-800.0,0.00017812,2]
[402332693,1768659095294,-1409.0,0.00017904,2]
[402332694,1768659095304,-452.52060236,0.00017938,32]
[402332695,1768659095314,-1409.0,0.0001794,2]
[402332696,1768659095324,-1409.0,0.00017985,2]
[402332697,1768659095335,-13761.0,0.00018,2]
[402332698,1768659095345,-152129.62492152,0.00018,2]
[402332699,1768659095355,-28166.53084422,0.00018,5]
[402332700,1768659095365,-1202.33991656,0.00018,2]
[402332701,1768659095375,-236.2,0.00018034,2]
[402332702,1768659095385,-155.0,0.00018081,2]
[402332703,1768659095394,-180.95,0.00018081,2]
[402332704,1768659095404,-819.0592275,0.00018082,3]
[402332705,1768659095414,-500.0,0.00018082,3]
[402332707,1768659095424,-978.82,0.00018082,3]
[402332708,1768659095434,-500.0,0.00018082,3]
[402332709,1768659095443,-500.0,0.00018082,3]
[402332710,1768659095453,-1000.0,0.00018082,2]
[402332711,1768659095463,-1229.39,0.00018082,3]
[402332712,1768659095473,-500.0,0.00018082,3]
[402332713,1768659095483,-500.0,0.00018082,3]
[402332714,1768659095494,-556.53,0.00018082,3]
[402332715,1768659095515,-500.0,0.00018082,3]
[402332716,1768659095525,-512.66871378,0.00018082,3]
[402332717,1768659095536,-500.0,0.00018082,3]
[402332718,1768659095547,-499.44798613,0.00018082,3]
[402332719,1768659095557,-500.0,0.00018082,3]
[402332720,1768659095567,-672.56,0.00018082,3]
[402332721,1768659095577,-500.0,0.00018082,3]
[402332722,1768659095588,-792.58,0.00018082,3]
[402332723,1768659095599,-504.49,0.00018082,3]
[402332724,1768659095610,-673.73,0.00018082,3]
[402332725,1768659095621,-567.58,0.00018082,3]
[402332726,1768659095631,-1022.08,0.00018082,3]
[402332727,1768659095642,-500.0,0.00018082,3]
[402332728,1768659095653,-762.34,0.00018082,3]
[402332729,1768659095663,-950.57,0.00018082,3]
[402332730,1768659095674,-500.0,0.00018082,3]
[402332731,1768659095684,-500.0,0.00018082,3]
[402332732,1768659095695,-500.0,0.00018082,3]
[402332733,1768659095705,-1072.24,0.00018082,3]
[402332734,1768659095716,-500.0,0.00018082,3]
[402332735,1768659095727,-507.22,0.00018082,3]
[402332736,1768659095738,-500.0,0.00018082,3]
[402332737,1768659095748,-500.0,0.00018082,3]
[402332738,1768659095759,-836.71,0.00018082,3]
[402332739,1768659095770,-500.0,0.00018082,3]
[402332740,1768659095780,-500.0,0.00018082,3]
[402332741,1768659095790,-500.0,0.00018082,3]
[402332742,1768659095801,-1098.82,0.00018082,3]
[402332744,1768659095811,-500.0,0.00018082,3]
[402332746,1768659095822,-500.0,0.00018082,3]
[402332748,1768659095833,-500.0,0.00018082,3]
[402332749,1768659095843,-527.98947312,0.00018082,3]
[402332750,1768659095854,-500.0,0.00018082,3]
[402332751,1768659095870,-1864.45,0.00018082,3]
[402332752,1768659095880,-500.0,0.00018082,3]
[402332753,1768659095891,-772.16,0.00018082,3]
[402332754,1768659095903,-348.04789676,0.00018082,3]
[402332755,1768659095914,-523.8,0.00018082,3]
[402332756,1768659095924,-500.0,0.00018082,3]
[402332757,1768659095938,-500.0,0.00018082,3]
[402332758,1768659095948,-785.13,0.00018082,3]
[402332759,1768659095958,-1777.27,0.00018082,3]
[402332760,1768659095968,-875.55,0.00018082,3]
[402332761,1768659095979,-500.0,0.00018082,3]
[402332762,1768659095990,-964.42,0.00018082,3]
[402332763,1768659096000,-564.35,0.00018082,3]
[402332764,1768659096011,-612.1,0.00018082,3]
[402332765,1768659096022,-500.0,0.00018082,3]
[402332766,1768659096033,-643.39,0.00018082,3]
[402332767,1768659096044,-976.59,0.00018082,3]
[402332768,1768659096055,-974.97,0.00018082,3]
[402332769,1768659096066,-1699.56,0.00018082,3]
[402332770,1768659096076,-500.0,0.00018082,3]
[402332771,1768659096087,-500.0,0.00018082,3]
[402332772,1768659096098,-500.0,0.00018082,3]
[402332773,1768659096110,-999.91,0.00018082,3]
[402332774,1768659096120,-500.0,0.00018082,3]
[402332775,1768659096131,-500.0,0.00018082,3]
[402332776,1768659096142,-530.71,0.00018082,3]
[402332777,1768659096154,-500.0,0.00018082,3]
[402332778,1768659096176,-1003.52,0.00018082,3]
[402332779,1768659096521,-741.6,0.00018082,3]
[402332780,1768659096539,-500.0,0.00018082,3]
[402332781,1768659096549,-500.0,0.00018082,3]
[402332782,1768659096560,-565.41,0.00018082,3]
[402332783,1768659096571,-979.46,0.00018082,3]
[402332784,1768659096581,-895.32,0.00018082,3]
[402332785,1768659096590,-904.31,0.00018082,3]
[402332786,1768659096600,-903.29,0.00018082,3]
[402332787,1768659096610,-500.0,0.00018082,3]
[402332788,1768659096619,-500.0,0.00018082,3]
[402332789,1768659096628,-500.0,0.00018082,3]
[402332790,1768659096638,-500.0,0.00018082,3]
[402332791,1768659096647,-500.0,0.00018082,3]
[402332792,1768659096656,-692.98,0.00018082,3]
[402332793,1768659096666,-1000.0,0.00018082,2]
[402332794,1768659096676,-500.0,0.00018082,3]
[402332795,1768659096685,-500.0,0.00018082,3]
[402332796,1768659096694,-500.0,0.00018082,3]
[402332797,1768659096703,-1541.12,0.00018082,3]
[402332798,1768659096713,-1586.94,0.00018082,3]
[402332799,1768659096723,-500.0,0.00018082,3]
[402332800,1768659096733,-500.0,0.00018082,3]
[402332801,1768659096743,-500.0,0.00018082,3]
[402332802,1768659096753,-500.0,0.00018082,3]
[402332803,1768659096762,-557.26,0.00018082,3]
[402332804,1768659096772,-1200.0,0.00018082,2]
[402332805,1768659096781,-500.0,0.00018082,3]
[402332806,1768659096791,-960.56,0.00018082,3]
[402332807,1768659096800,-500.0,0.00018082,3]
[402332808,1768659096810,-1187.76,0.00018082,3]
[402332809,1768659096819,-500.0,0.00018082,3]
[402332810,1768659096829,-524.86,0.00018082,3]
[402332811,1768659096839,-500.0,0.00018082,3]
[402332812,1768659096848,-2078.62,0.00018082,3]
[402332813,1768659096859,-500.0,0.00018082,3]
[402332814,1768659096871,-500.0,0.00018082,3]
[402332815,1768659096881,-500.0,0.00018082,3]
[402332816,1768659096890,-510.56,0.00018082,3]
[402332817,1768659096900,-500.0,0.00018082,3]
[402332818,1768659096911,-500.0,0.00018082,3]
[402332819,1768659096921,-504.11,0.00018082,3]
[402332820,1768659096932,-500.0,0.00018082,3]
[402332821,1768659096943,-500.0,0.00018082,3]
[402332822,1768659096953,-500.0,0.00018082,3]
[402332823,1768659096963,-500.0,0.00018082,3]
[402332824,1768659096973,-500.0,0.00018082,3]
[402332825,1768659096982,-1289.75,0.00018082,3]
[402332826,1768659096992,-759.35,0.00018082,3]
[402332827,1768659097001,-500.0,0.00018082,3]
[402332828,1768659097010,-500.0,0.00018082,3]
[402332829,1768659097019,-500.0,0.00018082,3]
[402332830,1768659097030,-500.0,0.00018082,3]
[402332831,1768659097040,-566.37,0.00018082,3]
[402332832,1768659097049,-985.63,0.00018082,3]
[402332833,1768659097059,-1802.89,0.00018082,3]
[402332834,1768659097068,-557.15103403,0.00018082,3]
[402332835,1768659097077,-500.0,0.00018082,3]
[402332836,1768659097088,-924.88,0.00018082,3]
[402332837,1768659097097,-500.0,0.00018082,3]
[402332838,1768659097106,-500.0,0.00018082,3]
[402332839,1768659097116,-875.06,0.00018082,3]
[402332840,1768659097126,-788.81,0.00018082,3]
[402332841,1768659097135,-500.0,0.00018082,3]
[402332842,1768659097146,-523.17,0.00018082,3]
[402332843,1768659097157,-1398.2,0.00018082,3]
[402332844,1768659097167,-500.0,0.00018082,3]
[402332845,1768659097177,-500.0,0.00018082,3]
[402332846,1768659097188,-500.0,0.00018082,3]
[402332847,1768659097197,-752.83,0.00018082,3]
[402332848,1768659097208,-311.24128532,0.00018082,3]
[402332849,1768659097218,-500.0,0.00018082,3]
[402332850,1768659097227,-500.0,0.00018082,3]
[402332851,1768659097237,-1507.14,0.00018082,3]
[402332852,1768659097247,-500.0,0.00018082,3]
[402332853,1768659097257,-1240.14,0.00018082,3]
[402332854,1768659097267,-646.22,0.00018082,3]
[402332855,1768659097276,-764.23,0.00018082,3]
[402332856,1768659097285,-500.0,0.00018082,3]
[402332857,1768659097295,-500.0,0.00018082,3]
[402332858,1768659097304,-500.0,0.00018082,3]
[402332859,1768659097314,-500.0,0.00018082,3]
[402332860,1768659097324,-284.7821744,0.00018082,3]
[402332861,1768659097333,-500.0,0.00018082,3]
[402332862,1768659097343,-1946.38,0.00018082,3]
[402332863,1768659097353,-500.0,0.00018082,3]
[402332864,1768659097364,-681.74,0.00018082,3]
[402332865,1768659097374,-500.0,0.00018082,3]
[402332866,1768659097384,-1174.25,0.00018082,3]
[402332867,1768659097393,-500.0,0.00018082,3]
[402332868,1768659097403,-1047.71,0.00018082,3]
[402332869,1768659097413,-500.0,0.00018082,3]
[402332870,1768659097423,-1121.76,0.00018082,3]
[402332871,1768659097433,-628.37,0.00018082,3]
[402332872,1768659097443,-1173.68,0.00018082,3]
[402332873,1768659097453,-895.09,0.00018082,3]
[402332874,1768659097462,-1376.86,0.00018082,3]
[402332875,1768659097472,-500.0,0.00018082,3]
[402332876,1768659097482,-512.63,0.00018082,3]
[402332877,1768659097491,-718.33,0.00018082,3]
[402332878,1768659097501,-763.87,0.00018082,3]
[402332879,1768659097511,-1290.77,0.00018082,3]
[402332880,1768659097521,-500.0,0.00018082,3]
[402332881,1768659097530,-1726.7,0.00018082,3]
[402332882,1768659097539,-534.26411861,0.00018082,3]
[402332883,1768659097548,-500.0,0.00018082,3]
[402332884,1768659097558,-887.81,0.00018082,3]
[402332885,1768659097567,-500.0,0.00018082,3]
[402332886,1768659097577,-500.0,0.00018082,3]
[402332887,1768659097587,-500.0,0.00018082,3]
[402332888,1768659097597,-553.61,0.00018082,3]
[402332889,1768659097607,-1005.15,0.00018082,3]
[402332890,1768659097617,-500.0,0.00018082,3]
[402332891,1768659097628,-815.87,0.00018082,3]
[402332892,1768659097639,-500.0,0.00018082,3]
[402332893,1768659097648,-822.47,0.00018082,3]
[402332894,1768659097658,-1463.58,0.00018082,3]
[402332895,1768659097667,-500.0,0.00018082,3]
[402332896,1768659097677,-500.0,0.00018082,3]
[402332897,1768659097688,-500.0,0.00018082,3]
[402332898,1768659097698,-500.0,0.00018082,3]
[402332899,1768659097707,-500.0,0.00018082,3]
[402332900,1768659097717,-500.0,0.00018082,3]
[402332901,1768659097727,-796.2,0.00018082,3]
[402332902,1768659097737,-500.0,0.00018082,3]
[402332903,1768659097746,-500.0,0.00018082,3]
[402332904,1768659097756,-679.44,0.00018082,3]
[402332905,1768659097766,-510.91,0.00018082,3]
[402332906,1768659097775,-500.0,0.00018082,3]
[402332907,1768659097785,-824.67,0.00018082,3]
[402332908,1768659097794,-683.59,0.00018082,3]
[402332909,1768659097803,-500.0,0.00018082,3]
[402332910,1768659097813,-500.0,0.00018082,3]
[402332911,1768659097823,-1224.64,0.00018082,3]
[402332912,1768659097832,-877.29,0.00018082,3]
[402332913,1768659097842,-1471.77,0.00018082,3]
[402332914,1768659097852,-1469.24,0.00018082,3]
[402332915,1768659097865,-626.27,0.00018082,3]
[402332916,1768659097874,-1013.32,0.00018082,3]
[402332917,1768659097884,-567.29,0.00018082,3]
[402332918,1768659097894,-708.52,0.00018082,3]
[402332919,1768659097904,-588.8,0.00018082,3]
[402332920,1768659097914,-965.65,0.00018082,3]
[402332921,1768659097923,-799.45,0.00018082,3]
[402332922,1768659097935,-500.0,0.00018082,3]
[402332923,1768659097945,-664.21,0.00018082,3]
[402332924,1768659097955,-500.0,0.00018082,3]